fUSD/lending_fUSD_20241230
["ID","MTS","AMOUNT","RATE_DAILY","PERIOD"]
[347142975,1735519863502,886.47,0.00025012,120]
[347142976,1735519863568,537.33,0.00025012,120]
[347142977,1735519863778,528.16254845,0.00025012,120]
[347142978,1735519863852,537.33,0.00025012,120]
[347142979,1735519863981,886.47,0.00025012,120]
[347142980,1735519864039,500.0,0.00025012,120]
[347142981,1735519864162,537.33,0.00025012,120]
[347142982,1735519864266,886.47,0.00025012,120]
[347142983,1735519864459,537.33,0.00025012,120]
[347142984,1735519864589,886.47,0.00025012,120]
[347142985,1735519864710,537.33,0.00025012,120]
[347142986,1735519865101,886.47,0.00025012,120]
[347142987,1735519865186,487.0112,0.00025012,120]
[347142988,1735519865271,537.33,0.00025012,120]
[347142989,1735519865352,886.47,0.00025012,120]
[347142990,1735519865401,537.33,0.00025012,120]
[347142991,1735519865445,886.47,0.00025012,120]
[347142992,1735519865490,586.0,0.00025012,120]
[347142993,1735519865565,537.33,0.00025012,120]
[347142994,1735519865609,500.0,0.00025012,120]
[347142995,1735519865715,886.47,0.00025012,120]
[347142996,1735519865833,537.33,0.00025012,120]
[347142997,1735519865880,500.0,0.00025012,120]
[347142998,1735519865925,1130.47,0.00025012,120]
[347142999,1735519866079,886.47,0.00025012,120]
[347143000,1735519866128,537.33,0.00025012,120]
[347143001,1735519866320,886.47,0.00025012,120]
[347143002,1735519866373,537.33,0.00025012,120]
[347143003,1735519866482,500.0,0.00025012,120]
[347143004,1735519866541,1130.47,0.00025012,120]
[347143005,1735519866589,694.04046874,0.00025012,120]
[347143006,1735520054051,500.0,0.00015186,120]
[347143007,1735520103626,2035.28741284,0.00023,120]
[347143010,1735520882754,233.0,0.00023,120]
[347143019,1735521031724,-544.27636939,0.00011394,2]
[347143020,1735521031735,-256.84363061,0.00011394,2]
[347143021,1735521031744,-3943.17446976,0.00012877,2]
[347143022,1735521031755,-3699.02753024,0.00012877,2]
[347143023,1735521031764,-3459.31095152,0.00012939,2]
[347143024,1735521031891,-507.88956673,0.00012939,2]
[347143025,1735521031956,-1909.07707931,0.00012939,2]
[347143026,1735521032077,-132.33693718,0.00012939,2]
[347143027,1735521032087,-343.21389782,0.0001294,2]
[347143029,1735521037948,-161.52610218,0.0001294,2]
[347143030,1735521037957,-508.05,0.0001294,2]
[347143031,1735521037967,-491.14,0.0001294,2]
[347143032,1735521037976,-38429.6567,0.0001294,2]
[347143033,1735521037986,-785.68861838,0.0001294,2]
[347143034,1735521038012,-1649.19950443,0.0001294,2]
[347143182,1735521039665,-1699.80147719,0.0001294,2]
[347143184,1735521039680,-260.6253,0.00012967,2]
[347143186,1735521039689,-250.0,0.00013016,2]
[347143188,1735521039699,-1000.0,0.00013049,2]
[347143190,1735521039708,-10836.6766043,0.00013085,2]
[347143192,1735521039718,-61744.2,0.00013085,2]
[347143194,1735521039727,-429.9,0.00013136,2]
[347143196,1735521039737,-150.99,0.00013136,2]
[347143198,1735521039748,-9376.5,0.00013136,2]
[347143200,1735521039758,-999.99,0.00013136,2]
[347143202,1735521039767,-299.99,0.00013136,2]
[347143204,1735521039777,-1535.27,0.00013136,2]
[347143206,1735521039787,-9999.99,0.00013136,2]
[347143208,1735521039805,-2921.26,0.00013136,2]
[347143210,1735521039815,-462.8,0.00013136,2]
[347143212,1735521039825,-150.99,0.00013136,2]
[347143215,1735521039834,-207.76,0.00013144,2]
[347143216,1735521039843,-281.51,0.00013203,2]
[347143219,1735521039852,-1256.51,0.00013276,2]
[347143220,1735521039861,-12470.0,0.00013368,2]
[347143222,1735521039870,-2270.5918,0.00013399,2]
[347143224,1735521039879,-18669.0101,0.00013399,2]
[347143226,1735521039889,-492.01,0.0001344,2]
[347143228,1735521039898,-4569.9341,0.00013499,2]
[347143230,1735521039912,-500.0,0.00013499,2]
[347143233,1735521039925,-151.0,0.000135,2]
[347143234,1735521039935,-151.28,0.00013578,2]
[347143236,1735521039945,-302.4,0.00013578,2]
[347143239,1735521039955,-150.47,0.00013578,2]
[347143241,1735521039965,-1956.0,0.00013578,2]
[347143243,1735521039973,-201.9,0.00013578,2]
[347143245,1735521039984,-801.12,0.00013657,2]
[347143247,1735521039993,-2500.0,0.00013695,2]
[347143249,1735521040003,-200.0,0.00013699,2]
[347143251,1735521040012,-502.2,0.00013715,2]
[347143252,1735521040021,-2200.0,0.00013795,2]
[347143254,1735521040030,-800.0,0.00013795,2]
[347143256,1735521040039,-151.0,0.00013989,2]
[347143258,1735521040048,-501.426,0.0001416,2]
[347143261,1735521040058,-151.0,0.00014263,2]
[347143263,1735521040068,-666.12301,0.00014398,2]
[347143265,1735521040077,-666.12301,0.00014398,3]
[347143267,1735521040086,-666.12301,0.00014398,4]
[347143269,1735521040095,-7300.505,0.00014418,2]
[347143271,1735521040105,-266.714,0.00014418,2]
[347143273,1735521040114,-666.12301,0.00014498,2]
[347143275,1735521040123,-666.12301,0.00014498,3]
[347143277,1735521040132,-666.12301,0.00014498,4]
[347143279,1735521040140,-1000.0,0.000145,2]
[347143280,1735521040149,-29999.99,0.00014504,2]
[347143283,1735521040159,-20265.52,0.00014504,2]
[347143285,1735521040169,-1126.15,0.00014504,2]
[347143286,1735521040178,-151.0,0.00014537,2]
[347143288,1735521040187,-150.68,0.00014548,2]
[347143291,1735521040197,-771.1,0.00014575,2]
[347143293,1735521040206,-666.12301,0.00014598,2]
[347143295,1735521040215,-666.12301,0.00014598,4]
[347143297,1735521040224,-666.12301,0.00014598,3]
[347143298,1735521040233,-225.0,0.000146,3]
[347143300,1735521040242,-167.9640946,0.00014619,2]
[347143303,1735521040251,-429.29762397,0.00014624,2]
[347143304,1735521040260,-200.0,0.0001464,2]
[347143306,1735521040270,-682.7087,0.0001466,2]
[347143309,1735521040279,-1000.0,0.0001468,2]
[347143310,1735521040288,-666.12301,0.00014698,4]
[347143313,1735521040297,-666.12301,0.00014698,3]
[347143314,1735521040306,-666.12301,0.00014698,2]
[347143316,1735521040316,-1000.0,0.000147,2]
[347143318,1735521040325,-2092.2631,0.00014719,2]
[347143320,1735521040334,-5714.1774,0.00014719,2]
[347143322,1735521040343,-6796.0049,0.00014719,2]
[347143324,1735521040352,-6561.0648,0.00014719,2]
[347143326,1735521040361,-842.3602,0.00014719,2]
[347143328,1735521040371,-5828.6663,0.00014719,2]
[347143330,1735521040379,-500.0,0.00014744,2]
[347143332,1735521040389,-429.9,0.00014778,2]
[347143334,1735521040398,-50619.36132665,0.00014785,2]
[347143336,1735521040407,-666.12301,0.00014798,4]
[347143338,1735521040418,-666.12301,0.00014798,3]
[347143340,1735521040427,-666.12301,0.00014798,2]
[347143342,1735521040436,-9179.0616897,0.00014809,2]
[347143344,1735521040446,-24006.832866,0.00014819,2]
[347143347,1735521040456,-500.0,0.00014838,2]
[347143349,1735521040466,-150.0,0.00014844,2]
[347143350,1735521040475,-300.56,0.00014849,2]
[347143353,1735521040485,-150.0,0.00014849,2]
[347143355,1735521040494,-150.0,0.00014849,2]
[347143356,1735521040503,-150.0,0.00014849,2]
[347143359,1735521040513,-30131.3633,0.00014866,2]
[347143361,1735521040522,-5000.0,0.00014885,2]
[347143362,1735521040531,-3000.65,0.0001489,2]
[347143365,1735521040541,-500.0,0.00014891,2]
[347143367,1735521040550,-151.0,0.00014891,2]
[347143369,1735521040559,-333.12301,0.00014898,2]
[347143371,1735521040568,-1717.0,0.00014916,2]
[347143373,1735521040577,-1457.0,0.00014918,2]
[347143375,1735521040587,-914.0,0.00014918,2]
[347143377,1735521040595,-50619.36132657,0.00014964,2]
[347143379,1735521040604,-37078.4992,0.00014985,2]
[347143381,1735521040614,-1000.0,0.00014985,2]
[347143383,1735521040623,-666.12301,0.00014998,2]
[347143385,1735521040632,-666.12301,0.00014998,3]
[347143387,1735521040641,-666.12301,0.00014998,4]
[347143389,1735521040650,-8501.0,0.00015,2]
[347143391,1735521040659,-500.0,0.00015014,2]
[347143392,1735521040668,-152.0,0.00015068,4]
[347143395,1735521040678,-2186.96,0.00015068,2]
[347143397,1735521040688,-300.0,0.00015068,2]
[347143399,1735521040697,-7500.0,0.00015084,2]
[347143401,1735521040707,-513.0515,0.00015085,2]
[347143403,1735521040716,-436.65,0.00015115,2]
[347143405,1735521040725,-872.13,0.00015115,2]
[347143407,1735521040735,-150.0,0.00015115,2]
[347143409,1735521040744,-150.0,0.00015115,2]
[347143411,1735521040753,-50619.36132657,0.00015144,2]
[347143413,1735521040762,-3000.65,0.00015164,2]
[347143415,1735521040771,-2200.0,0.00015165,2]
[347143417,1735521040780,-800.0,0.00015165,2]
[347143419,1735521040789,-1621.23,0.00015185,2]
[347143421,1735521040798,-3337.47,0.00015185,2]
[347143423,1735521040807,-1774.25,0.00015185,2]
[347143425,1735521040816,-6652.86,0.00015185,2]
[347143427,1735521040825,-2875.63,0.00015185,2]
[347143429,1735521040834,-1432.16,0.00015185,2]
[347143431,1735521040843,-1805.5,0.00015185,2]
[347143433,1735521040852,-699.78,0.00015185,2]
[347143434,1735521040861,-2238.9,0.00015185,2]
[347143437,1735521040871,-4490.97,0.00015185,2]
[347143439,1735521040880,-1251.07,0.00015185,2]
[347143441,1735521040890,-1710.82,0.00015185,2]
[347143443,1735521040901,-520.38,0.00015185,2]
[347143444,1735521040915,-1345.13,0.00015185,2]
[347143446,1735521040925,-1457.0,0.00015192,2]
[347143448,1735521040935,-914.0,0.00015192,2]
[347143450,1735521040944,-666.12301,0.00015198,2]
[347143453,1735521040955,-666.12301,0.00015198,3]
[347143454,1735521040964,-666.12301,0.00015198,4]
[347143456,1735521040973,-591.75,0.00015217,2]
[347143458,1735521040985,-262.33447947,0.00015322,2]
[347143460,1735521040994,-500.0,0.00015322,2]
[347143462,1735521041004,-50619.36132657,0.00015323,2]
[347143464,1735521041013,-152.0,0.0001533,5]
[347143467,1735521041023,-194.43,0.00015337,2]
[347143469,1735521041033,-4726.93764688,0.00015358,2]
[347143470,1735521041042,-730.0,0.000154,2]
[347143472,1735521041051,-1000.0,0.000154,2]
[347143474,1735521041060,-460.0,0.000154,2]
[347143476,1735521041069,-974.5,0.000154,2]
[347143478,1735521041079,-3000.65,0.00015438,2]
[347143481,1735521041088,-1621.23,0.00015459,2]
[347143482,1735521041097,-3337.47,0.00015459,2]
[347143485,1735521041108,-1774.25,0.00015459,2]
[347143487,1735521041118,-6652.86,0.00015459,2]
[347143489,1735521041127,-2875.63,0.00015459,2]
[347143490,1735521041136,-1432.16,0.00015459,2]
[347143493,1735521041146,-1805.5,0.00015459,2]
[347143495,1735521041155,-699.78,0.00015459,2]
[347143497,1735521041165,-2238.9,0.00015459,2]
[347143499,1735521041176,-4490.97,0.00015459,2]
[347143501,1735521041185,-1251.07,0.00015459,2]
[347143503,1735521041194,-1710.82,0.00015459,2]
[347143505,1735521041203,-520.38,0.00015459,2]
[347143507,1735521041212,-1345.13,0.00015459,2]
[347143509,1735521041221,-1457.0,0.00015466,2]
[347143511,1735521041230,-914.0,0.00015466,2]
[347143513,1735521041239,-1628.0,0.00015498,2]
[347143515,1735521041249,-666.12301,0.00015498,4]
[347143517,1735521041258,-666.12301,0.00015498,3]
[347143519,1735521041267,-666.12301,0.00015498,2]
[347143521,1735521041276,-500.0,0.00015499,2]
[347143523,1735521041285,-500.0,0.00015499,2]
[347143525,1735521041294,-500.0,0.00015499,2]
[347143526,1735521041303,-500.0,0.00015499,2]
[347143528,1735521041313,-500.0,0.00015499,2]
[347143530,1735521041322,-500.0,0.00015499,2]
[347143532,1735521041331,-500.0,0.00015499,2]
[347143534,1735521041341,-500.0,0.00015499,2]
[347143536,1735521041350,-500.0,0.00015499,2]
[347143538,1735521041359,-500.0,0.00015499,2]
[347143540,1735521041368,-481.24,0.00015499,2]
[347143543,1735521041378,-50619.36132657,0.00015503,2]
[347143544,1735521041387,-152.0,0.00015593,6]
[347143547,1735521041397,-50619.36132657,0.00015682,2]
[347143549,1735521041406,-171.17,0.00015695,2]
[347143550,1735521041415,-1000.0,0.000157,2]
[347143553,1735521041425,-1621.23,0.00015733,2]
[347143555,1735521041434,-3337.47,0.00015733,2]
[347143556,1735521041443,-1774.25,0.00015733,2]
[347143558,1735521041453,-6652.86,0.00015733,2]
[347143561,1735521041462,-2875.63,0.00015733,2]
[347143563,1735521041472,-1432.16,0.00015733,2]
[347143565,1735521041481,-1805.5,0.00015733,2]
[347143566,1735521041490,-699.78,0.00015733,2]
[347143567,1735521041499,-2238.9,0.00015733,2]
[347143568,1735521041509,-4490.97,0.00015733,2]
[347143569,1735521041518,-1251.07,0.00015733,2]
[347143570,1735521041527,-1710.82,0.00015733,2]
[347143571,1735521041537,-520.38,0.00015733,2]
[347143572,1735521041546,-1345.13,0.00015733,2]
[347143573,1735521041556,-1457.0,0.0001574,2]
[347143574,1735521041565,-914.0,0.0001574,2]
[347143575,1735521041575,-2186.96,0.00015753,2]
[347143576,1735521041584,-666.12301,0.00015798,2]
[347143577,1735521041594,-666.12301,0.00015798,3]
[347143578,1735521041603,-666.12301,0.00015798,4]
[347143579,1735521041612,-152.0,0.00015817,3]
[347143580,1735521041622,-445.87474109,0.00015837,2]
[347143581,1735521041632,-152.0,0.00015855,7]
[347143582,1735521041641,-50619.36132657,0.00015862,2]
[347143583,1735521041650,-1000.0,0.000159,2]
[347143584,1735521041660,-2047.63676239,0.000159,2]
[347143585,1735521041670,-801.12,0.00015921,2]
[347143586,1735521041680,-445.87474105,0.00015931,2]
[347143587,1735521041689,-868.7,0.00015945,2]
[347143588,1735521041698,-150.0,0.00015945,2]
[347143589,1735521041707,-10477.353153,0.00015977,2]
[347143590,1735521041717,-35574.80188273,0.0001598,2]
[347143591,1735521041726,-56851.54718575,0.00016,2]
[347143592,1735521041736,-6959.7149068,0.00016,2]
[347143593,1735521041745,-14982.49775482,0.00016,2]
[347143594,1735521041755,-758.45555893,0.00016,2]
[347143595,1735521041764,-130208.0,0.00016,2]
[347143596,1735521041774,-550.0,0.00016,2]
[347143597,1735521041783,-2156.952187,0.00016,2]
[347143598,1735521041792,-1621.23,0.00016007,2]
[347143599,1735521041801,-3337.47,0.00016007,2]
[347143600,1735521041810,-1774.25,0.00016007,2]
[347143601,1735521041820,-6652.86,0.00016007,2]
[347143602,1735521041829,-2875.63,0.00016007,2]
[347143603,1735521041838,-1432.16,0.00016007,2]
[347143604,1735521041847,-1805.5,0.00016007,2]
[347143605,1735521041856,-699.78,0.00016007,2]
[347143606,1735521041866,-2238.9,0.00016007,2]
[347143607,1735521041876,-4490.97,0.00016007,2]
[347143608,1735521041885,-1251.07,0.00016007,2]
[347143609,1735521041895,-1710.82,0.00016007,2]
[347143610,1735521041906,-520.38,0.00016007,2]
[347143611,1735521041918,-1345.13,0.00016007,2]
[347143612,1735521041927,-1457.0,0.00016014,2]
[347143613,1735521041936,-914.0,0.00016014,2]
[347143614,1735521041947,-445.87474105,0.00016025,2]
[347143615,1735521041957,-1000.0,0.00016037,2]
[347143616,1735521041966,-30000.0,0.00016037,2]
[347143617,1735521041976,-50619.36132657,0.00016041,2]
[347143618,1735521041986,-1000.0,0.00016064,2]
[347143619,1735521041996,-150.0,0.00016091,2]
[347143620,1735521042007,-150.397,0.00016091,2]
[347143621,1735521042017,-150.265,0.00016091,2]
[347143622,1735521042026,-276.367,0.00016091,2]
[347143623,1735521042035,-1000.0,0.00016092,2]
[347143624,1735521042045,-1000.0,0.000161,2]
[347143625,1735521042054,-9999.99,0.00016116,2]
[347143626,1735521042063,-152.0,0.00016118,8]
[347143627,1735521042072,-445.87474105,0.00016119,2]
[347143628,1735521042082,-1000.0,0.00016119,2]
[347143629,1735521042092,-1000.0,0.00016146,2]
[347143630,1735521042101,-1000.0,0.00016174,2]
[347143631,1735521042111,-666.12301,0.00016198,4]
[347143632,1735521042120,-666.12301,0.00016198,3]
[347143633,1735521042130,-666.12301,0.00016198,2]
[347143634,1735521042139,-1000.0,0.00016201,2]
[347143635,1735521042148,-445.87474105,0.00016212,2]
[347143636,1735521042158,-50619.36132657,0.00016221,2]
[347143637,1735521042167,-1000.0,0.00016229,2]
[347143638,1735521042178,-7838.616,0.00016253,2]
[347143639,1735521042187,-1266.0,0.00016256,2]
[347143640,1735521042196,-2012.0,0.00016256,2]
[347143641,1735521042206,-634.0,0.00016256,2]
[347143642,1735521042215,-150.0,0.00016256,2]
[347143643,1735521042224,-565.0,0.00016256,2]
[347143644,1735521042234,-1900.0,0.00016256,2]
[347143645,1735521042243,-819.0,0.00016256,2]
[347143646,1735521042253,-1257.0,0.00016256,2]
[347143647,1735521042262,-936.0,0.00016256,2]
[347143648,1735521042272,-3773.0,0.00016256,2]
[347143649,1735521042281,-3719.0,0.00016256,2]
[347143650,1735521042290,-536.0,0.00016256,2]
[347143651,1735521042300,-9604.0,0.00016256,2]
[347143652,1735521042309,-3890.0,0.00016256,2]
[347143653,1735521042318,-252.779,0.00016256,2]
[347143654,1735521042328,-1171.0,0.00016256,2]
[347143655,1735521042337,-151.0,0.00016256,2]
[347143656,1735521042346,-151.0,0.00016256,2]
[347143658,1735521042356,-151.0,0.00016256,2]
[347143661,1735521042365,-151.0,0.00016256,2]
[347143664,1735521042374,-151.0,0.00016256,2]
[347143665,1735521042384,-174.469314,0.00016256,2]
[347143681,1735521042554,-1000.0,0.00016256,2]
[347143682,1735521042602,-5666.9987,0.0001628,2]
[347143683,1735521042612,-1621.23,0.00016281,2]
[347143684,1735521042621,-3337.47,0.00016281,2]
[347143685,1735521042630,-1774.25,0.00016281,2]
[347143686,1735521042640,-6652.86,0.00016281,2]
[347143687,1735521042649,-2875.63,0.00016281,2]
[347143688,1735521042658,-1432.16,0.00016281,2]
[347143689,1735521042668,-1805.5,0.00016281,2]
[347143690,1735521042679,-699.78,0.00016281,2]
[347143691,1735521042689,-2238.9,0.00016281,2]
[347143692,1735521042698,-4490.97,0.00016281,2]
[347143693,1735521042708,-1251.07,0.00016281,2]
[347143694,1735521042717,-1710.82,0.00016281,2]
[347143695,1735521042726,-520.38,0.00016281,2]
[347143696,1735521042736,-1345.13,0.00016281,2]
[347143697,1735521042745,-1000.0,0.00016283,2]
[347143698,1735521042756,-1457.0,0.00016288,2]
[347143699,1735521042766,-914.0,0.00016288,2]
[347143700,1735521042775,-7688.986,0.00016288,2]
[347143701,1735521042785,-5465.35529999,0.00016289,2]
[347143702,1735521042795,-10135.0248153,0.000163,2]
[347143703,1735521042804,-156.11524161,0.000163,2]
[347143704,1735521042814,-87243.95101103,0.000163,2]
[347143705,1735521042823,-151.0,0.000163,2]
[347143706,1735521042833,-151.0,0.000163,2]
[347143707,1735521042842,-151.0,0.000163,2]
[347143708,1735521042852,-151.0,0.000163,2]
[347143709,1735521042861,-151.0,0.000163,2]
[347143710,1735521042870,-349394.86276623,0.000163,2]
[347143711,1735521042880,-151.0,0.000163,2]
[347143712,1735521042889,-151.0,0.000163,2]
[347143713,1735521042899,-168.729415,0.000163,2]
[347143714,1735521042913,-168.729415,0.000163,2]
[347143715,1735521042922,-151.0,0.000163,2]
[347143716,1735521042931,-151.0,0.000163,2]
[347143717,1735521042941,-151.0,0.000163,2]
[347143718,1735521042952,-151.0,0.000163,2]
[347143719,1735521042962,-151.0,0.000163,2]
[347143720,1735521042971,-208.849408,0.000163,2]
[347143721,1735521042981,-151.0,0.000163,2]
[347143722,1735521042991,-151.0,0.000163,2]
[347143723,1735521043000,-151.0,0.000163,2]
[347143724,1735521043010,-151.0,0.000163,2]
[347143725,1735521043019,-151.0,0.000163,2]
[347143726,1735521043029,-151.0,0.000163,2]
[347143727,1735521043038,-151.0,0.000163,2]
[347143728,1735521043048,-151.0,0.000163,2]
[347143729,1735521043057,-524.860154,0.000163,2]
[347143730,1735521043066,-524.860154,0.000163,2]
[347143731,1735521043074,-151.0,0.000163,2]
[347143732,1735521043084,-151.0,0.000163,2]
[347143734,1735521043093,-485.758157,0.000163,2]
[347143736,1735521043102,-485.758157,0.000163,2]
[347143738,1735521043111,-383.134586,0.000163,2]
[347143740,1735521043120,-383.134586,0.000163,2]
[347143742,1735521043129,-151.0,0.000163,2]
[347143744,1735521043138,-151.0,0.000163,2]
[347143746,1735521043147,-151.0,0.000163,2]
[347143748,1735521043156,-1959.970095,0.000163,2]
[347143750,1735521043165,-1959.970095,0.000163,2]
[347143752,1735521043175,-151.0,0.000163,2]
[347143756,1735521043184,-445.87474105,0.00016306,2]
[347143759,1735521043193,-1000.0,0.00016311,2]
[347143762,1735521043203,-216.71734697,0.00016311,2]
[347143764,1735521043212,-200.0,0.0001634,2]
[347143766,1735521043220,-151.0,0.00016354,2]
[347143768,1735521043230,-168.729415,0.00016356,2]
[347143770,1735521043239,-168.729415,0.00016356,2]
[347143772,1735521043248,-151.0,0.00016356,2]
[347143774,1735521043257,-162.432014,0.00016356,2]
[347143776,1735521043265,-151.0,0.00016356,2]
[347143778,1735521043274,-170.200424,0.00016356,2]
[347143780,1735521043283,-151.0,0.00016356,2]
[347143782,1735521043292,-151.0,0.00016356,2]
[347143784,1735521043301,-151.0,0.00016356,2]
[347143786,1735521043310,-524.860154,0.00016356,2]
[347143788,1735521043319,-524.860154,0.00016356,2]
[347143790,1735521043328,-151.0,0.00016356,2]
[347143792,1735521043337,-485.758157,0.00016356,2]
[347143794,1735521043347,-485.758157,0.00016356,2]
[347143796,1735521043356,-151.0,0.00016356,2]
[347143798,1735521043365,-447.656603,0.00016356,2]
[347143800,1735521043374,-447.656603,0.00016356,2]
[347143802,1735521043383,-151.0,0.00016356,2]
[347143804,1735521043392,-1959.970095,0.00016356,2]
[347143806,1735521043401,-1959.970095,0.00016356,2]
[347143808,1735521043410,-151.0,0.00016356,2]
[347143810,1735521043419,-27931.0,0.00016356,2]
[347143812,1735521043428,-26178.0,0.00016356,2]
[347143814,1735521043437,-500.0,0.00016373,2]
[347143816,1735521043446,-152.0,0.0001638,9]
[347143818,1735521043456,-125260.0,0.00016384,2]
[347143819,1735521043465,-692.0,0.00016384,2]
[347143821,1735521043474,-183.50631839,0.00016389,2]
[347143823,1735521043484,-183.50631838,0.00016395,2]
[347143825,1735521043493,-666.12301,0.00016398,4]
[347143827,1735521043503,-666.12301,0.00016398,3]
[347143829,1735521043512,-666.12301,0.00016398,2]
[347143831,1735521043521,-500.0,0.00016399,2]
[347143833,1735521043530,-1341901.67508123,0.000164,2]
[347143835,1735521043539,-5000.0,0.000164,2]
[347143837,1735521043548,-151.0,0.000164,2]
[347143839,1735521043557,-151.0,0.000164,2]
[347143841,1735521043567,-151.0,0.000164,2]
[347143843,1735521043576,-151.0,0.000164,2]
[347143845,1735521043585,-151.0,0.000164,2]
[347143847,1735521043594,-151.0,0.000164,2]
[347143849,1735521043604,-151.0,0.000164,2]
[347143850,1735521043613,-151.0,0.000164,2]
[347143851,1735521043622,-168.729415,0.000164,2]
[347143852,1735521043632,-168.729415,0.000164,2]
[347143853,1735521043641,-151.0,0.000164,2]
[347143854,1735521043651,-151.0,0.000164,2]
[347143855,1735521043660,-151.0,0.000164,2]
[347143856,1735521043669,-445.87474105,0.000164,2]
[347143857,1735521043679,-151.0,0.000164,2]
[347143858,1735521043687,-151.0,0.000164,2]
[347143859,1735521043697,-151.0,0.000164,2]
[347143860,1735521043706,-151.0,0.000164,2]
[347143861,1735521043715,-151.0,0.000164,2]
[347143862,1735521043724,-151.0,0.000164,2]
[347143863,1735521043733,-524.860154,0.000164,2]
[347143864,1735521043742,-524.860154,0.000164,2]
[347143865,1735521043751,-151.0,0.000164,2]
[347143866,1735521043761,-151.0,0.000164,2]
[347143867,1735521043770,-50619.36132657,0.000164,2]
[347143868,1735521043779,-151.0,0.000164,2]
[347143869,1735521043788,-485.758157,0.000164,2]
[347143870,1735521043797,-485.758157,0.000164,2]
[347143871,1735521043807,-1210.72789905,0.000164,2]
[347143872,1735521043816,-383.134586,0.000164,2]
[347143873,1735521043826,-383.134586,0.000164,2]
[347143874,1735521043835,-151.0,0.000164,2]
[347143875,1735521043844,-151.0,0.000164,2]
[347143876,1735521043854,-447.656603,0.000164,2]
[347143877,1735521043863,-447.656603,0.000164,2]
[347143878,1735521043872,-1959.970095,0.000164,2]
[347143879,1735521043881,-1959.970095,0.000164,2]
[347143880,1735521043891,-151.0,0.000164,2]
[347143881,1735521043900,-185.93170517,0.000164,2]
[347143882,1735521043911,-183.50631838,0.000164,2]
[347143883,1735521043921,-429.9,0.0001642,2]
[347143884,1735521043930,-10711.33056671,0.00016421,2]
[347143885,1735521043939,-2476.82753543,0.00016421,2]
[347143886,1735521043948,-200.0,0.00016422,2]
[347143887,1735521043958,-3675.15288574,0.00016422,2]
[347143888,1735521043967,-630.20169086,0.00016422,2]
[347143889,1735521043977,-29474.42906553,0.00016422,2]
[347143890,1735521043986,-200.0,0.00016423,2]
[347143891,1735521043995,-13396.68168777,0.00016423,2]
[347143892,1735521044005,-3675.15288574,0.00016425,2]
[347143893,1735521044014,-2256.77779478,0.00016425,2]
[347143894,1735521044023,-3675.15288574,0.00016426,2]
[347143895,1735521044032,-2256.77779478,0.00016428,2]
[347143896,1735521044041,-2476.82753543,0.0001643,2]
[347143897,1735521044050,-10711.33056671,0.00016431,2]
[347143898,1735521044059,-2476.82753543,0.00016432,2]
[347143899,1735521044068,-29474.42906553,0.00016434,2]
[347143900,1735521044078,-13396.68168777,0.00016435,2]
[347143901,1735521044087,-10995.00843696,0.00016436,2]
[347143902,1735521044096,-3675.15288573,0.00016437,2]
[347143903,1735521044105,-10711.33056671,0.00016437,2]
[347143904,1735521044115,-1764.06,0.00016438,2]